fUST/lending_fUST_20251218
["ID","MTS","AMOUNT","RATE_DAILY","PERIOD"]
[398920032,1765996250687,150.0,9.297e-05,2]
[398920033,1765996251127,150.0,9.961e-05,2]
[398920034,1765996319284,150.0,7.258e-05,2]
[398920035,1765996319716,150.0,7.918e-05,2]
[398920036,1765996320130,150.0,8.578e-05,2]
[398920037,1765996320541,150.0,9.237e-05,2]
[398920038,1765996320928,150.0,9.897e-05,2]
[398920039,1765996386170,150.0,7.075e-05,2]
[398920040,1765996386560,150.0,7.718e-05,2]
[398920041,1765996386974,150.0,8.361e-05,2]
[398920042,1765996387378,150.0,9.004e-05,2]
[398920043,1765996387797,150.0,9.647e-05,2]
[398920044,1765996456966,150.0,7.985e-05,2]
[398920045,1765996457385,150.0,8.711e-05,2]
[398920046,1765996457799,150.0,9.437e-05,2]
[398920047,1765996523463,150.0,8.085e-05,2]
[398920048,1765996809783,-562.0,0.0001015,2]
[398920049,1765996809805,-186.99699119,0.0001015,2]
[398920050,1765996847901,150.0,9.984e-05,2]
[398920051,1765996915135,150.0,9.8e-05,2]
[398920052,1765996982710,150.0,9.774e-05,2]
[398920053,1765997162697,-20.04882465,0.0001015,2]
[398920054,1765997162720,-129.95117535,0.00010465,2]
[398920092,1765997437561,-224.40381683,0.00017708,2]
[398920094,1765997437571,-681.0,0.00017708,2]
[398920096,1765997437581,-579.00333235,0.00024895,2]
[398920098,1765997437590,-2000.0,0.00024995,14]
[398920100,1765997437599,-2869.25127432,0.00025388,2]
[398920381,1765997440653,-167.4843,0.00025388,2]
[398920386,1765997440689,-1571.83595748,0.00025388,2]
[398920388,1765997440698,-350.1,0.00026313,2]
[398920390,1765997440708,-2000.0,0.00026675,2]
[398920391,1765997440718,-646.7510407,0.00026897,2]
[398920393,1765997440727,-73.53100182,0.00026999,7]
[398920396,1765997440738,-359.99275684,0.00026999,7]
[398920398,1765997440749,-1566.47624134,0.00026999,7]
[398920400,1765997440758,-1000.0,0.00027266,30]
[398920402,1765997440767,-11006.9995353,0.00027511,2]
[398920404,1765997440776,-721.4928391,0.00027938,2]
[398920406,1765997440785,-321.57681805,0.00028233,2]
[398920408,1765997440795,-2000.0,0.00028398,15]
[398920410,1765997440805,-165.08518651,0.00028869,2]
[398920412,1765997440814,-2181.49390592,0.00029661,2]
[398920425,1765997440927,-2098.30703866,0.00029752,2]
[398920728,1765997443695,-419.18467264,0.00029752,2]
[398920735,1765997443758,-23.32378285,0.00029752,2]
[398920738,1765997443770,-1874.01888232,0.00029752,2]
[398920740,1765997443784,-470.31115789,0.00029752,2]
[398920742,1765997443795,-829.53625222,0.00029752,2]
[398920745,1765997443806,-641.35815235,0.00029752,2]
[398920967,1765997446712,-3744.74473427,0.00029752,2]
[398920968,1765997446722,-215.50915552,0.00029761,2]
[398920969,1765997446732,-1703.03523555,0.00029762,2]
[398920970,1765997446818,-697.71665078,0.00029762,2]
[398921017,1765997589381,-150.0,0.00012947,2]
[398921018,1765997610825,-150.0,0.00014124,2]
[398921019,1765997843848,150.0,7.971e-05,2]
[398921021,1765997844280,150.0,8.695e-05,2]
[398921022,1765997844673,150.0,9.42e-05,2]
[398921029,1765997910953,150.0,7.237e-05,2]
[398921030,1765997911368,150.0,7.895e-05,2]
[398921053,1765998234033,150.0,8.747e-05,2]
[398921054,1765998234467,150.0,9.542e-05,2]
[398921066,1765998631556,-436.570327,0.00013699,2]
[398921067,1765998631566,-615.0,0.00013699,2]
[398921068,1765998631576,-300.53588642,0.00017708,2]
[398921069,1765998631586,-436.570327,0.00020187,2]
[398921070,1765998631599,-300.53588642,0.00024134,2]
[398921071,1765998631608,-2000.0,0.00024994,14]
[398921072,1765998631618,-1908.80716768,0.00025098,2]
[398921073,1765998631628,-1004.0,0.00025194,2]
[398921074,1765998631637,-9475.70784526,0.00025195,2]
[398921075,1765998631647,-398.00074638,0.00025197,2]
[398921076,1765998631656,-500.0,0.00025197,2]
[398921077,1765998631665,-533.10425205,0.00025197,2]
[398921078,1765998631674,-208.23339118,0.00025197,2]
[398921079,1765998631684,-49453.52669806,0.00025198,2]
[398921080,1765998631693,-3964.84464875,0.000252,5]
[398921081,1765998631702,-225.469,0.00025201,9]
[398921082,1765998631711,-500.0,0.00025201,2]
[398921083,1765998631720,-151.0,0.00025205,7]
[398921084,1765998631729,-1162.863707,0.00025205,7]
[398921085,1765998631738,-1162.863707,0.00025205,7]
[398921086,1765998631747,-1162.863707,0.00025205,7]
[398921087,1765998631756,-1162.863707,0.00025205,7]
[398921088,1765998631765,-10309.31624846,0.00025205,3]
[398921089,1765998631777,-381.8862348,0.00025205,3]
[398921090,1765998631793,-851.80407133,0.00025205,3]
[398921091,1765998631804,-8242.69038595,0.00025205,3]
[398921092,1765998631814,-319.74,0.00025205,3]
[398921093,1765998631825,-290.8,0.00025205,3]
[398921193,1765998637571,-500.0,0.00025196,2]
[398921195,1765998637581,-70.34751927,0.00025196,2]
[398921200,1765998637624,-249.53910179,0.00025196,2]
[398921202,1765998637633,-185.46089821,0.00025196,2]
[398921204,1765998637645,-314.53910179,0.00025196,2]
[398921206,1765998637655,-500.0,0.00025196,2]
[398921208,1765998637665,-500.0,0.00025196,2]
[398921210,1765998637674,-500.0,0.00025196,2]
[398921212,1765998637682,-500.0,0.00025196,2]
[398921214,1765998637691,-158.45644077,0.00025196,2]
[398921216,1765998637704,-341.54355923,0.00025196,2]
[398921218,1765998637713,-500.0,0.00025196,2]
[398921220,1765998637722,-500.0,0.00025196,2]
[398921222,1765998637732,-272.96377347,0.00025196,2]
[398921225,1765998637742,-500.0,0.00025196,2]
[398921227,1765998637752,-500.0,0.00025196,2]
[398921228,1765998637761,-417.57165996,0.00025196,2]
[398921231,1765998637773,-82.42834004,0.00025196,2]
[398921234,1765998637782,-500.0,0.00025196,2]
[398921237,1765998637792,-379.28545463,0.00025196,2]
[398921239,1765998637803,-120.71454537,0.00025196,2]
[398921241,1765998637812,-500.0,0.00025196,2]
[398921243,1765998637822,-500.0,0.00025196,2]
[398921245,1765998637831,-500.0,0.00025196,2]
[398921247,1765998637840,-82.73631456,0.00025196,2]
[398921249,1765998637854,-417.26368544,0.00025196,2]
[398921251,1765998637863,-359.56352513,0.00025196,2]
[398921253,1765998637872,-500.0,0.00025196,2]
[398921255,1765998637884,-500.0,0.00025196,2]
[398921257,1765998637894,-500.0,0.00025196,2]
[398921271,1765998638009,-213.33487183,0.00025196,2]
[398921273,1765998638020,-372.11756154,0.00025196,2]
[398921275,1765998638029,-500.0,0.00025196,2]
[398921278,1765998638039,-500.0,0.00025196,2]
[398921280,1765998638050,-500.0,0.00025196,2]
[398921282,1765998638060,-500.0,0.00025196,2]
[398921284,1765998638070,-500.0,0.00025196,2]
[398921286,1765998638081,-500.0,0.00025196,2]
[398921288,1765998638090,-500.0,0.00025196,2]
[398921290,1765998638102,-500.0,0.00025196,2]
[398921292,1765998638113,-500.0,0.00025196,2]
[398921294,1765998638122,-500.0,0.00025196,2]
[398921296,1765998638132,-500.0,0.00025196,2]
[398921298,1765998638142,-500.0,0.00025196,2]
[398921300,1765998638151,-500.0,0.00025196,2]
[398921302,1765998638161,-500.0,0.00025196,2]
[398921304,1765998638170,-4325.31486003,0.00025205,3]
[398921306,1765998638180,-500.0,0.00025475,2]
[398921308,1765998638190,-320.9,0.00026379,2]
[398921310,1765998638199,-436.570327,0.00026676,2]
[398921312,1765998638208,-541.1196293,0.00026887,2]
[398921314,1765998638218,-2000.0,0.00026998,7]
[398921316,1765998638227,-2000.0,0.00027265,15]
[398921318,1765998638236,-151.0,0.00027397,7]
[398921320,1765998638245,-245.238876,0.00027397,7]
[398921322,1765998638255,-151.0,0.00027397,7]
[398921324,1765998638264,-151.0,0.00027397,7]
[398921326,1765998638273,-151.0,0.00027397,7]
[398921328,1765998638282,-271.900501,0.00027397,7]
[398921330,1765998638291,-151.0,0.00027397,7]
[398921332,1765998638300,-151.0,0.00027397,7]
[398921334,1765998638309,-151.0,0.00027397,7]
[398921336,1765998638318,-151.0,0.00027397,7]
[398921338,1765998638327,-46.96603551,0.00027397,7]
[398921470,1765998639506,-104.03396449,0.00027397,7]
[398921472,1765998639517,-151.0,0.00027397,7]
[398921476,1765998639531,-151.0,0.00027397,7]
[398921479,1765998639543,-156.529842,0.00027397,7]
[398921482,1765998639554,-156.529842,0.00027397,7]
[398921485,1765998639564,-156.529842,0.00027397,7]
[398921488,1765998639575,-156.529842,0.00027397,7]
[398921493,1765998639586,-151.0,0.00027397,7]
[398921496,1765998639603,-151.0,0.00027397,7]
[398921499,1765998639615,-151.0,0.00027397,7]
[398921502,1765998639626,-151.0,0.00027397,7]
[398921505,1765998639637,-151.0,0.00027397,7]
[398921510,1765998639650,-151.0,0.00027397,7]
[398921513,1765998639660,-117.84561273,0.00027397,7]
[398921516,1765998639672,-33.15438727,0.00027397,7]
[398921519,1765998639682,-151.0,0.00027397,7]
[398921522,1765998639693,-151.0,0.00027397,7]
[398921525,1765998639706,-151.0,0.00027397,7]
[398921527,1765998639717,-151.0,0.00027397,7]
[398921529,1765998639728,-243.266899,0.00027397,7]
[398921531,1765998639739,-562.31420507,0.0002823,2]
[398921544,1765998639857,-733.73686278,0.0002823,2]
[398921547,1765998639874,-612.75609977,0.0002823,2]
[398921549,1765998639884,-2000.0,0.00028397,15]
[398921551,1765998639896,-165.08518652,0.00028869,2]
[398921553,1765998639909,-299.35771371,0.00029652,2]
[398921556,1765998639923,-709.80499023,0.00029652,2]
[398921558,1765998639934,-151.0,0.00029742,7]
[398921560,1765998639945,-151.0,0.00029742,7]
[398921562,1765998639956,-151.0,0.00029742,7]
[398921565,1765998639968,-151.0,0.00029742,7]
[398921567,1765998639978,-151.0,0.00029742,7]
[398921569,1765998639987,-2371.01733195,0.00029742,2]
[398921571,1765998639999,-890.80323467,0.00029742,2]
[398921573,1765998640010,-528.89051107,0.00029742,2]
[398921578,1765998640044,-835.2226,0.00029742,2]
[398922096,1765998644992,-420.0,0.00029742,2]
[398922103,1765998645046,-1959.42071875,0.00029742,2]
[398922212,1765998645905,-2357.72674961,0.00029742,2]
[398922215,1765998645919,-112.62669921,0.00029742,2]
[398922217,1765998645930,-666.15243235,0.00029742,2]
[398922234,1765998646064,-8809.55541291,0.00029742,2]
[398922236,1765998646074,-151.0,0.00029752,7]
[398922238,1765998646085,-151.0,0.00029752,7]
[398922240,1765998646095,-151.0,0.00029752,7]
[398922242,1765998646106,-151.0,0.00029752,7]
[398922244,1765998646116,-151.0,0.00029752,7]
[398922247,1765998646126,-151.0,0.00029752,7]
[398922249,1765998646136,-151.0,0.00029752,7]
[398922251,1765998646147,-151.0,0.00029752,7]
[398922253,1765998646157,-151.0,0.00029752,7]
[398922255,1765998646167,-151.0,0.00029752,7]
[398922257,1765998646176,-151.0,0.00029752,7]
[398922259,1765998646187,-151.0,0.00029752,7]
[398922261,1765998646197,-151.0,0.00029752,7]
[398922263,1765998646207,-151.0,0.00029752,7]
[398922266,1765998646217,-151.0,0.00029752,7]
[398922268,1765998646226,-255.852592,0.00029752,7]
[398922270,1765998646236,-151.0,0.00029752,7]
[398922272,1765998646246,-192.89092,0.00029752,7]
[398922274,1765998646257,-151.0,0.00029752,7]
[398922276,1765998646267,-151.0,0.00029752,7]
[398922278,1765998646278,-156.529842,0.00029752,7]
[398922280,1765998646288,-156.529842,0.00029752,7]
[398922282,1765998646298,-156.529842,0.00029752,7]
[398922285,1765998646309,-156.529842,0.00029752,7]
[398922287,1765998646319,-156.529842,0.00029752,7]
[398922289,1765998646330,-156.529842,0.00029752,7]
[398922291,1765998646341,-156.529842,0.00029752,7]
[398922306,1765998646476,-156.529842,0.00029752,7]
[398922308,1765998646488,-151.0,0.00029752,7]
[398922310,1765998646499,-151.0,0.00029752,7]
[398922312,1765998646508,-151.0,0.00029752,7]
[398922314,1765998646518,-151.0,0.00029752,7]
[398922316,1765998646527,-151.0,0.00029752,7]
[398922318,1765998646537,-151.0,0.00029752,7]
[398922321,1765998646547,-151.0,0.00029752,7]
[398922323,1765998646556,-151.0,0.00029752,7]
[398922325,1765998646565,-748.63373711,0.00029752,7]
[398922327,1765998646577,-414.22996989,0.00029752,7]
[398922329,1765998646586,-1162.863707,0.00029752,7]
[398922331,1765998646595,-128.18632311,0.00029752,7]
[398923893,1765998710678,317.17558216,0.00022896,56]
[398923922,1765999831776,-150.0,0.00015,2]
[398923924,1765999831786,-150.64342532,0.00019755,2]
[398923927,1765999831796,-150.0,0.00021051,2]
[398923929,1765999831805,-26.45725936,0.00022,2]
[398923931,1765999831817,-393.15388229,0.00022,2]
[398923933,1765999831826,-1029.85481243,0.000225,2]
[398923935,1765999831835,-136.11685377,0.00022895,15]
[398923937,1765999831850,-1863.88314623,0.00022895,15]
[398923939,1765999831859,-177.0,0.00023051,2]
[398923942,1765999831869,-1200.0,0.00023464,2]
[398923944,1765999831878,-300.0,0.00023999,2]
[398923946,1765999831887,-300.0,0.00023999,2]
[398923947,1765999831896,-1731.22453886,0.00024,2]
[398923949,1765999831905,-464.50578843,0.00024,2]
[398923951,1765999831915,-1513.79859168,0.00024142,2]
[398923953,1765999831924,-1000.0,0.00024198,30]
[398923955,1765999831933,-512.96406382,0.0002465,2]
[398923957,1765999831942,-2000.0,0.00024993,14]
[398923959,1765999831951,-1083.52863411,0.00025,2]
[398923961,1765999831960,-2669.83258074,0.00025,2]
[398923963,1765999831970,-207.27147764,0.00025,2]
[398923965,1765999831979,-150.0,0.00025,2]
[398923967,1765999831989,-500.0,0.00025,2]
[398923969,1765999831998,-384.69048692,0.00025,4]
[398923972,1765999832008,-1721.83975064,0.00025,5]
[398923974,1765999832016,-600.0,0.00025,2]
[398923976,1765999832026,-1850.96723288,0.00025,2]
[398923978,1765999832038,-757.33163738,0.00025,2]
[398923980,1765999832048,-204.0,0.00025051,2]
[398923982,1765999832057,-2000.0,0.00025199,5]
[398923984,1765999832067,-2000.0,0.000252,9]
[398923986,1765999832076,-2000.0,0.00025204,3]
[398923988,1765999832085,-900.0,0.00025469,3]
[398923990,1765999832094,-1000.0,0.000255,2]
[398923992,1765999832104,-167.4843,0.00025672,2]
[398923994,1765999832114,-528.86087896,0.00026,2]
[398923995,1765999832123,-11999.999999,0.00026,30]
[398923997,1765999832133,-294.2,0.0002639,2]
[398923999,1765999832142,-7114.1341619,0.00027016,2]
[398924011,1765999832302,-231.0,0.00027051,2]
[398924012,1765999832312,-1033.086896,0.00027397,7]
[398924013,1765999832322,-1033.086896,0.00027397,7]
[398924014,1765999832336,-1033.086896,0.00027397,7]
[398924015,1765999832346,-1033.086896,0.00027397,7]
[398924016,1765999832355,-162.828926,0.00027397,7]
[398924017,1765999832364,-151.0,0.00027397,7]
[398924018,1765999832373,-151.0,0.00027397,7]
[398924019,1765999832382,-616.449818,0.00027397,7]
[398924020,1765999832392,-151.0,0.00027397,7]
[398924021,1765999832401,-616.449818,0.00027397,7]
[398924022,1765999832410,-616.449818,0.00027397,7]
[398924023,1765999832419,-616.449818,0.00027397,7]
[398924024,1765999832428,-151.0,0.00027397,7]
[398924025,1765999832438,-315.255198,0.00027397,7]
[398924026,1765999832447,-151.0,0.00027397,7]
[398924027,1765999832456,-151.0,0.00027397,7]
[398924028,1765999832465,-230.64493,0.00027397,7]
[398924029,1765999832474,-315.255198,0.00027397,7]
[398924030,1765999832483,-315.255198,0.00027397,7]
[398924031,1765999832493,-151.0,0.00027397,7]
[398924032,1765999832502,-151.0,0.00027397,7]
[398924033,1765999832511,-151.0,0.00027397,7]
[398924034,1765999832519,-151.0,0.00027397,7]
[398924035,1765999832528,-315.255198,0.00027397,7]
[398924036,1765999832538,-151.0,0.00027397,7]
[398924037,1765999832547,-151.0,0.00027397,7]
[398924038,1765999832556,-163.346612,0.00027397,7]
[398924039,1765999832565,-501.90302049,0.00028,2]
[398924040,1765999832575,-2000.0,0.00028396,15]
[398924041,1765999832584,-165.08518652,0.00028869,2]
[398924042,1765999832594,-258.0,0.00029051,2]
[398924043,1765999832604,-262.17372502,0.00029357,2]
[398924044,1765999832614,-634.81498576,0.00029357,2]
[398924045,1765999832623,-500.0,0.00029357,2]
[398924046,1765999832632,-530.32930816,0.00029357,2]
[398924047,1765999832641,-500.0,0.00029357,2]
[398924048,1765999832650,-500.0,0.00029357,2]
[398924049,1765999832662,-500.0,0.00029357,2]
[398924050,1765999832672,-500.0,0.00029357,2]
[398924051,1765999832685,-244.10129467,0.00029357,2]
[398924052,1765999832695,-1033.086896,0.00029358,7]
[398924053,1765999832703,-1033.086896,0.00029358,7]
[398924054,1765999832712,-1033.086896,0.00029358,7]
[398924055,1765999832721,-1033.086896,0.00029358,7]
[398924056,1765999832731,-151.0,0.00029358,7]
[398924057,1765999832740,-151.0,0.00029358,7]
[398924058,1765999832749,-616.449818,0.00029358,7]
[398924059,1765999832759,-151.0,0.00029358,7]
[398924060,1765999832769,-616.449818,0.00029358,7]
[398924061,1765999832778,-616.449818,0.00029358,7]
[398924062,1765999832788,-616.449818,0.00029358,7]
[398924063,1765999832798,-151.0,0.00029358,7]
[398924064,1765999832807,-315.255198,0.00029358,7]
[398924065,1765999832816,-284.467912,0.00029358,7]
[398924066,1765999832826,-315.255198,0.00029358,7]
[398924067,1765999832840,-315.255198,0.00029358,7]
[398924068,1765999832849,-151.0,0.00029358,7]
[398924069,1765999832859,-315.255198,0.00029358,7]
[398924070,1765999832868,-1890.77995008,0.00029455,2]
[398924071,1765999832878,-6000.0,0.000296,6]
[398924072,1765999832888,-300.0,0.000296,10]
[398924073,1765999832898,-151.0,0.000296,7]
[398924074,1765999832907,-200.0,0.00029733,2]
[398924075,1765999832917,-2773.56790519,0.00029733,2]
[398924076,1765999832926,-2000.0,0.00029741,2]
[398924077,1765999832935,-1033.086896,0.00029742,7]
[398924078,1765999832944,-1033.086896,0.00029742,7]
[398924079,1765999832953,-1033.086896,0.00029742,7]
[398924080,1765999832962,-1033.086896,0.00029742,7]
[398924081,1765999832971,-151.0,0.00029742,7]
[398924082,1765999832981,-151.0,0.00029742,7]
[398924083,1765999832990,-616.449818,0.00029742,7]
[398924084,1765999832999,-291.460119,0.00029742,7]
[398924085,1765999833009,-616.449818,0.00029742,7]
[398924086,1765999833019,-616.449818,0.00029742,7]
[398924087,1765999833028,-616.449818,0.00029742,7]
[398924088,1765999833037,-151.0,0.00029742,7]
[398924089,1765999833046,-315.255198,0.00029742,7]
[398924090,1765999833055,-315.255198,0.00029742,7]
[398924091,1765999833064,-315.255198,0.00029742,7]
[398924092,1765999833073,-315.255198,0.00029742,7]
[398924093,1765999833084,-16108.7033369,0.00029742,2]
[398924094,1765999833094,-405.839722,0.00029745,2]
[398924095,1765999833103,-164.3685793,0.00029745,2]
[398924096,1765999833112,-1290.758269,0.00029745,2]
[398924097,1765999833121,-2000.0,0.00029751,7]
[398924098,1765999833130,-8054.35166847,0.00029752,2]
[398924099,1765999833139,-344.0,0.00029752,7]
[398924100,1765999833148,-278.33741599,0.00029752,7]
[398924101,1765999833158,-1000.0,0.00029752,120]
[398924102,1765999833167,-1000.0,0.00029752,120]
[398924103,1765999833176,-1000.0,0.00029752,120]
[398924104,1765999833186,-1000.0,0.00029752,120]
[398924105,1765999833195,-1000.0,0.00029752,120]
[398924106,1765999833204,-1000.0,0.00029752,120]
[398924107,1765999833213,-1000.0,0.00029752,120]
[398924108,1765999833223,-1000.0,0.00029752,120]
[398924109,1765999833233,-1000.0,0.00029752,120]
[398924110,1765999833242,-475.0,0.00029752,120]
[398924111,1765999833252,-475.0,0.00029752,120]
[398924112,1765999833261,-475.0,0.00029752,120]
[398924113,1765999833269,-475.0,0.00029752,120]
[398924114,1765999833278,-475.0,0.00029752,120]
[398924115,1765999833287,-475.0,0.00029752,120]
[398924116,1765999833296,-475.0,0.00029752,120]
[398924117,1765999833306,-475.0,0.00029752,120]
[398924118,1765999833315,-475.0,0.00029752,120]
[398924119,1765999833324,-475.0,0.00029752,120]
[398924120,1765999833339,-475.0,0.00029752,120]
[398924121,1765999833356,-475.0,0.00029752,120]
[398924122,1765999833367,-475.0,0.00029752,120]
[398924123,1765999833376,-475.0,0.00029752,120]
[398924124,1765999833386,-475.0,0.00029752,120]
[398924125,1765999833395,-475.0,0.00029752,120]
[398924126,1765999833405,-475.0,0.00029752,120]
[398924127,1765999833415,-475.0,0.00029752,120]
[398924128,1765999833424,-475.0,0.00029752,120]
[398924129,1765999833434,-475.0,0.00029752,120]
[398924130,1765999833444,-475.0,0.00029752,120]
[398924131,1765999833453,-475.0,0.00029752,120]
[398924132,1765999833463,-475.0,0.00029752,120]
[398924133,1765999833472,-475.0,0.00029752,120]
[398924134,1765999833482,-475.0,0.00029752,120]
[398924135,1765999833491,-475.0,0.00029752,120]
[398924136,1765999833501,-475.0,0.00029752,120]
[398924137,1765999833510,-475.0,0.00029752,120]
[398924138,1765999833520,-475.0,0.00029752,120]
[398924139,1765999833529,-475.0,0.00029752,120]
[398924140,1765999833538,-475.0,0.00029752,120]
[398924141,1765999833547,-475.0,0.00029752,120]
[398924142,1765999833557,-475.0,0.00029752,120]
[398924143,1765999833566,-475.0,0.00029752,120]
[398924144,1765999833575,-475.0,0.00029752,120]
[398924145,1765999833585,-475.0,0.00029752,120]
[398924146,1765999833594,-475.0,0.00029752,120]
[398924147,1765999833603,-475.0,0.00029752,120]
[398924148,1765999833612,-475.0,0.00029752,120]
[398924149,1765999833621,-475.0,0.00029752,120]
[398924150,1765999833630,-475.0,0.00029752,120]
[398924151,1765999833639,-475.0,0.00029752,120]
[398924152,1765999833648,-475.0,0.00029752,120]
[398924153,1765999833657,-475.0,0.00029752,120]
[398924154,1765999833666,-475.0,0.00029752,120]
[398924155,1765999833676,-475.0,0.00029752,120]
[398924156,1765999833689,-475.0,0.00029752,120]
[398924157,1765999833698,-475.0,0.00029752,120]
[398924158,1765999833707,-475.0,0.00029752,120]
[398924159,1765999833717,-475.0,0.00029752,120]
[398924160,1765999833727,-475.0,0.00029752,120]
[398924161,1765999833736,-475.0,0.00029752,120]
[398924162,1765999833746,-475.0,0.00029752,120]
[398924163,1765999833757,-475.0,0.00029752,120]
[398924164,1765999833767,-475.0,0.00029752,120]
[398924165,1765999833777,-475.0,0.00029752,120]
[398924166,1765999833786,-475.0,0.00029752,120]
[398924167,1765999833795,-475.0,0.00029752,120]
[398924168,1765999833805,-475.0,0.00029752,120]
[398924169,1765999833814,-475.0,0.00029752,120]
[398924170,1765999833823,-475.0,0.00029752,120]
[398924171,1765999833834,-475.0,0.00029752,120]
[398924172,1765999833843,-475.0,0.00029752,120]
[398924173,1765999833853,-475.0,0.00029752,120]
[398924174,1765999833863,-475.0,0.00029752,120]
[398924175,1765999833872,-475.0,0.00029752,120]
[398924176,1765999833881,-475.0,0.00029752,120]
[398924177,1765999833890,-475.0,0.00029752,120]
[398924178,1765999833899,-475.0,0.00029752,120]
[398924179,1765999833909,-475.0,0.00029752,120]
[398924180,1765999833918,-475.0,0.00029752,120]
[398924181,1765999833928,-475.0,0.00029752,120]
[398924182,1765999833937,-475.0,0.00029752,120]
[398924183,1765999833946,-475.0,0.00029752,120]
[398924184,1765999833955,-475.0,0.00029752,120]
[398924185,1765999833965,-475.0,0.00029752,120]
[398924186,1765999833974,-475.0,0.00029752,120]
[398924187,1765999833983,-475.0,0.00029752,120]
[398924188,1765999833992,-475.0,0.00029752,120]
[398924189,1765999834002,-475.0,0.00029752,120]
[398924190,1765999834012,-475.0,0.00029752,120]
[398924191,1765999834026,-475.0,0.00029752,120]
[398924192,1765999834035,-475.0,0.00029752,120]
[398924193,1765999834045,-475.0,0.00029752,120]
[398924194,1765999834054,-200.482799,0.00029752,7]
[398924195,1765999834063,-200.482799,0.00029752,7]
[398924196,1765999834073,-200.482799,0.00029752,7]
[398924197,1765999834087,-200.482799,0.00029752,7]
[398924198,1765999834098,-200.482799,0.00029752,7]
[398924199,1765999834108,-200.482799,0.00029752,7]
[398924200,1765999834118,-200.482799,0.00029752,7]
[398924201,1765999834128,-200.482799,0.00029752,7]
[398924202,1765999834138,-200.482799,0.00029752,7]
[398924203,1765999834148,-200.482799,0.00029752,7]
[398924204,1765999834158,-200.482799,0.00029752,7]
[398924205,1765999834167,-200.482799,0.00029752,7]
[398924206,1765999834177,-200.482799,0.00029752,7]
[398924207,1765999834186,-200.482799,0.00029752,7]
[398924208,1765999834196,-200.482799,0.00029752,7]
[398924209,1765999834206,-200.482799,0.00029752,7]
[398924210,1765999834215,-240.913267,0.00029752,7]
[398924211,1765999834225,-200.482799,0.00029752,7]
[398924212,1765999834235,-200.482799,0.00029752,7]
[398924213,1765999834245,-200.482799,0.00029752,7]
[398924214,1765999834254,-569.918549,0.00029752,7]
[398924215,1765999834263,-200.482803,0.00029752,7]
[398924216,1765999834273,-569.918549,0.00029752,7]
[398924217,1765999834282,-569.918549,0.00029752,7]
[398924218,1765999834292,-569.918549,0.00029752,7]
[398924219,1765999834302,-569.918549,0.00029752,7]
[398924220,1765999834311,-569.918549,0.00029752,7]
[398924221,1765999834320,-569.918549,0.00029752,7]
[398924222,1765999834332,-569.918549,0.00029752,7]
[398924223,1765999834342,-569.918549,0.00029752,7]
[398924224,1765999834351,-569.918549,0.00029752,7]
[398924225,1765999834361,-569.918549,0.00029752,7]
[398924226,1765999834370,-569.918549,0.00029752,7]
[398924227,1765999834379,-569.918549,0.00029752,7]
[398924228,1765999834388,-247.220273,0.00029752,7]
[398924229,1765999834398,-569.918549,0.00029752,7]
[398924230,1765999834407,-247.220273,0.00029752,7]
[398924231,1765999834416,-569.918549,0.00029752,7]
[398924232,1765999834426,-247.220273,0.00029752,7]
[398924233,1765999834436,-569.918549,0.00029752,7]